[Event "2nd China Preliminary Asian Games 2022"]
[Site "HangZhou"]
[Date "2022.04.15"]
[Round "2.3"]
[White "Ding, Liren"]
[Black "Xu, Xiangyu"]
[Result "1-0"]
[ECO "E51"]
[WhiteElo "2799"]
[BlackElo "2564"]
[Annotator "TA"]
[PlyCount "81"]
[EventDate "2022.04.13"]
[EventType "tourn"]
[EventCountry "CHN"]
[SourceTitle "playchess.com"]
[Source "ChessBase"]
[SourceQuality "1"]
[TimeControl "40/5400+30:1800+30"]

{[%evp 13,81,0,2,0,12,0,8,0,10,4,0,6,17,-3,6,-8,11,16,21,19,38,34,39,52,66,80,92,45,46,35,60,38,177,158,256,219,220,222,258,198,192,185,205,198,222,224,231,232,222,235,236,236,246,236,237,232,260,245,272,272,292,287,312,310,289,272,331,322,349,358]} 1. d4 {[%emt 0:00:26]} Nf6 {[%emt 0:00:09]} 2. c4 {[%emt 0:00:41]} e6 {[%emt 0:00:07]} 3. Nc3 {[%emt 0:00:37]} Bb4 {[%emt 0:00:08]} 4. e3 {[%emt 0:00:15]} O-O {[%emt 0:01:23]} 5. Bd2 {[%emt 0:00:07]} d5 {[%emt 0:01:12]} 6. Nf3 {[%emt 0:01:08]} b6 {[%emt 0:03:29]} 7. cxd5 {[%emt 0:00:10]} exd5 {[%emt 0:00:06]} 8. Bd3 {[%emt 0:00:06] E51: Nimzo-Indian: Rubinstein: 4...0-0 5 Nf3 d5.} Ba6 {[%emt 0:00:05]} 9. Bxa6 {[%emt 0:01:23]} Nxa6 {[%emt 0:00:10]} 10. Qa4 {[%emt 0:13:23] The position is equal.} Qc8 {[%emt 0:00:09]} 11. O-O {[%emt 0:00:15]} Qb7 {[%emt 0:12:22]} 12. Rac1 {[%emt 0:05:01]} Rac8 {[%emt 0:20:18]} 13. Rfd1 {[%emt 0:15:13] [#]} Rfd8 $146 {[%emt 0:05:06]} ({Predecessor:} 13... c6 14. Ne2 Be7 15. Ng3 Rfe8 16. Bc3 Bf8 17. Ne5 g6 18. b4 h5 19. f3 Nb8 {0-1 (68) Batsiashvili,N (2472)-Eljanov,P (2734) Douglas 2017}) 14. a3 {[%emt 0:04:38]} Bxc3 {[%emt 0:03:19]} 15. Bxc3 {[%emt 0:00:05]} Ne4 {[%emt 0:00:12]} 16. Be1 {[%emt 0:01:23]} c5 {[%emt 0:04:52]} 17. dxc5 $1 {[%emt 0:00:04]} bxc5 {[%emt 0:00:30]} 18. b4 {[%emt 0:02:22]} c4 {[%emt 0:15:43]} 19. Nd4 $1 {[%emt 0:00:57]} Nd6 {[%emt 0:01:44]} 20. Rb1 {[%emt 0:08:29]} (20. f3 $16) 20... Re8 {[%emt 0:04:10]} 21. Qa5 {[%emt 0:11:53]} Nc7 {[%emt 0:05:56]} (21... c3 22. b5 Nc5 23. Qxc3 $16 (23. Bxc3 Nc4 $16)) 22. a4 {[%emt 0:06:35][%cal Ba3a4,Ba4b5,Bb5a6][%mdl 32]} c3 {[%emt 0:13:39] [#] A mistake that costs the game.} (22... a6 $14) 23. b5 $1 $18 {[%emt 0:04:22]} (23. Bxc3 Nc4 24. Qc5 Na8 $15) 23... Ncxb5 {[%emt 0:00:18]} (23... c2 $16 24. Nxc2 Nc4) 24. Rxb5 {[%emt 0:02:27]} ({Avoid the trap} 24. Nxb5 $2 c2 25. Qxa7 Qxa7 26. Nxa7 cxb1=R 27. Rxb1 Rc7 $19) 24... Nxb5 {[%emt 0:00:08]} 25. axb5 {[%emt 0:00:03]} Qc7 {[%emt 0:02:56]} 26. Qxc7 {[%emt 0:05:45]} Rxc7 {[%emt 0:00:30]} 27. Rc1 {[%emt 0:00:03]} Rc4 {[%emt 0:04:43]} 28. Kf1 {[%emt 0:00:26]} ({But not} 28. Bxc3 Rec8) 28... a6 {[%emt 0:00:34]} 29. bxa6 {[%emt 0:00:17]} Ra8 {[%emt 0:00:09]} 30. Ra1 {[%emt 0:01:19]} c2 {[%emt 0:00:29]} 31. Bd2 {[%emt 0:00:04]} Rc7 {[%emt 0:00:52]} 32. Ke2 {[%emt 0:00:06]} Rca7 {[%emt 0:00:18]} 33. Ra5 {[%emt 0:00:26]} Rxa6 {[%emt 0:00:13]} 34. Rxd5 {[%emt 0:00:14]} Ra2 {[%emt 0:01:00]} 35. Rc5 {[%emt 0:00:08]} f6 {[%emt 0:00:29]} 36. Nxc2 {[%emt 0:00:19] White has a decisive advantage.} ({Resist} 36. Rxc2 h5 37. Rxa2 Rxa2 $18) 36... R8a7 {[%emt 0:00:26]} 37. g4 {[%emt 0:00:13]} Kf7 {[%emt 0:00:07]} 38. h4 {[%emt 0:00:15][%cal Bh2h4,Bh4h5][%mdl 32]} Rb7 {[%emt 0:00:44]} 39. h5 {[%emt 0:01:44]} g6 {[%emt 0:00:22]} 40. Kd3 {[%emt 0:00:00]} Ra6 {[%emt 0:00:00]} 41. Bc3 {[%emt 0:00:55] Weighted Error Value: White=0.06 (flawless) /Black=0.22 (precise)} 1-0

[Event "2nd China Preliminary Asian Games 2022"]
[Site "HangZhou"]
[Date "2022.04.16"]
[Round "3.1"]
[White "Wei, Yi"]
[Black "Ding, Liren"]
[Result "1/2-1/2"]
[ECO "C48"]
[WhiteElo "2729"]
[BlackElo "2799"]
[Annotator "TA"]
[PlyCount "60"]
[EventDate "2022.04.13"]
[EventType "tourn"]
[EventCountry "CHN"]
[SourceTitle "playchess.com"]
[Source "ChessBase"]
[SourceQuality "1"]
[TimeControl "40/5400+30:1800+30"]

{[%evp 10,60,37,42,43,44,47,24,33,27,21,33,0,0,0,0,0,0,0,0,60,68,44,0,0,0,0,0,0,0,0,0,0,0,0,0,0,0,0,0,0,0,0,0,0,0,0,0,0,0,0,0,0]} 1. e4 {[%emt 0:00:04]} e5 {[%emt 0:00:32]} 2. Nf3 {[%emt 0:00:04]} Nc6 {[%emt 0:00:04]} 3. Nc3 {[%emt 0:00:03]} Nf6 {[%emt 0:00:08]} 4. Bb5 {[%emt 0:00:04]} Nd4 {[%emt 0:00:22]} 5. Bc4 {[%emt 0:00:13]} Bc5 {[%emt 0:00:43]} 6. Nxe5 {[%emt 0:00:19]} Qe7 {[%emt 0:00:05] C48: Four Knights: 4 Bb5, replies other than 4...Bb4.} 7. Nf3 {[%emt 0:00:04]} (7. Bxf7+ Kf8 8. Nd3 (8. f4 $2 d6 $19) 8... Kxf7 $17) (7. Nxf7 Rf8 8. O-O b5 9. Nxb5 (9. Nd5 Nxd5 10. Bxd5 c6 $11) 9... Nxb5 $11) 7... d5 {[%emt 0:00:08]} (7... Nxe4 8. Nd5 Nxf3+ 9. gxf3 $16 (9. Qxf3 Ng5+ 10. Qe3 Qxe3+ 11. Nxe3 O-O $11)) 8. Bxd5 {[%emt 0:00:07] 8.Nxd5 is the hot move.} Bg4 {[%emt 0:00:12] White has an edge.} 9. d3 {[%emt 0:00:11]} ({Not} 9. Bxb7 Rb8 10. Ba6 Nxe4 $19) 9... O-O-O {[%emt 0:00:33]} 10. Be3 {[%emt 0:00:18]} Nxd5 {[%emt 0:01:01]} 11. Nxd5 {[%emt 0:00:11]} Rxd5 {[%emt 0:00:09]} 12. exd5 {[%emt 0:00:04] Strongly threatening c3.} Re8 $1 {[%emt 0:00:06]} 13. O-O {[%emt 0:00:32]} (13. c3 Nxf3+ 14. gxf3 Qh4 15. Kd2 Rxe3 16. fxe3 Qf2+ 17. Kc1 Bxf3 18. Qe1 Bxe3+ 19. Kb1 Bxh1 20. Qxh1 Qe2 21. a4 Qxd3+ 22. Ka2 Qc4+ 23. Kb1 {½-½ (23) Wei,Y (2736)-Ding,L (2805) Abidjan 2019}) 13... Bxf3 {[%emt 0:04:41]} 14. gxf3 {[%emt 0:02:08] [#] Hoping for Re1.} Bd6 {[%emt 0:02:24] White must now prevent ...Qh4.} 15. f4 $1 {[%emt 0:08:48]} (15. Bxd4 Qg5+ 16. Kh1 Qf4) 15... Qh4 $1 {[%emt 0:01:31]} 16. Bxd4 {[%emt 0:00:40]} Bxf4 {[%emt 0:03:23][%csl Gf4][%cal Rh4h2] The position is equal.} 17. Kg2 {[%emt 0:00:12]} (17. h3 Qxh3) 17... Qxh2+ {[%emt 0:02:28]} 18. Kf3 {[%emt 0:00:09] [#]} Qh3+ $146 {[%emt 0:00:01]} ({Predecessor:} 18... Qh5+) 19. Kxf4 {[%emt 0:00:05]} Qh2+ $1 {[%emt 0:00:07]} 20. Kf3 {[%emt 0:00:13]} (20. Kg5 {gets mated.} f6+ 21. Kg4 f5+ 22. Kg5 Qh6+ 23. Kxf5 Rf8+) 20... Qh3+ {[%emt 0:00:03]} 21. Kf4 {[%emt 0:00:05][%cal Bf3f4,Bf4f5,Bf5g4,Bg4h4][%mdl 32]} Qh2+ $1 {[%emt 0:00:11]} 22. Kf5 {[%emt 0:02:17]} (22. Kg5 {is a self mate.} f6+ 23. Kg4 f5+ 24. Kg5 Qh6+ 25. Kxf5 Rf8+) 22... g6+ {[%emt 0:04:00]} 23. Kg4 $1 {[%emt 0:00:15]} Qg2+ {[%emt 0:00:23]} 24. Kh4 {[%emt 0:05:42]} Qh2+ {[%emt 0:04:01]} 25. Kg4 $1 {[%emt 0:00:07]} Qg2+ {[%emt 0:02:31]} 26. Kh4 {[%emt 0:00:12]} Qh2+ {[%emt 0:01:04]} 27. Kg4 $1 {[%emt 0:00:05]} Qg2+ {[%emt 0:00:14]} 28. Kh4 {[%emt 0:00:05]} Qh2+ {[%emt 1:13:25]} 29. Kg4 $1 {[%emt 0:00:05]} Qg2+ {[%emt 0:00:00]} 30. Kh4 {[%emt 0:00:39] [#] And now Qg4+ would win.} Qh2+ {[%emt 0:00:00] Weighted Error Value: White=0.02 (flawless) /Black=0.00 (flawless)} 1/2-1/2

[Event "2nd China Preliminary Asian Games 2022"]
[Site "HangZhou"]
[Date "2022.04.16"]
[Round "3.1"]
[White "Xu, Xiangyu"]
[Black "Ma, Qun"]
[Result "*"]
[ECO "C48"]
[WhiteElo "2564"]
[BlackElo "2645"]
[Annotator "RC"]
[PlyCount "43"]
[EventDate "2022.04.13"]
[EventType "tourn"]
[EventCountry "CHN"]
[SourceTitle "playchess.com"]
[Source "ChessBase"]
[SourceQuality "1"]
[TimeControl "40/5400+30:1800+30"]

1. e4 {[%emt 0:00:04]} e5 {[%emt 0:00:32]} 2. Nf3 {[%emt 0:00:04]} Nc6 {[%emt 0:00:04]} 3. Nc3 {[%emt 0:00:03]} Nf6 {[%emt 0:00:08]} 4. Bb5 {[%emt 0:00:04]} Nd4 {[%emt 0:00:22]} 5. Bc4 {[%emt 0:00:13]} Bc5 {[%emt 0:00:43]} 6. Nxe5 {[%emt 0:00:19]} Qe7 {[%emt 0:00:05]} 7. Nf3 {[%emt 1:33:13]} d5 {[%emt 0:00:08]} 8. Bxd5 {[%emt 1:33:39]} Bg4 {[%emt 0:00:12]} 9. d3 {[%emt 0:00:11]} O-O-O {[%emt 0:00:33]} 10. Be3 {[%emt 0:00:18]} Nxd5 {[%emt 0:01:01]} 11. Nxd5 {[%emt 0:00:11]} Rxd5 {[%emt 0:00:09]} 12. exd5 {[%emt 0:00:04]} Re8 {[%emt 0:00:06]} 13. O-O {[%emt 0:00:32]} Bxf3 {[%emt 0:04:41]} 14. gxf3 {[%emt 0:02:08]} Bd6 {[%emt 1:28:46]} 15. f4 {[%emt 0:08:48]} Qh4 {[%emt 0:01:31]} 16. Bxd4 {[%emt 0:00:40]} Bxf4 {[%emt 0:03:23]} 17. Kg2 {[%emt 0:00:12]} Qxh2+ {[%emt 0:02:28]} 18. Kf3 {[%emt 0:00:09]} Qh3+ {[%emt 0:00:01]} 19. Kxf4 {[%emt 0:00:05]} Qh2+ {[%emt 0:00:07]} 20. Kf3 {[%emt 0:00:13]} Qh3+ {[%emt 0:00:03]} 21. Kf4 {[%emt 0:00:05]} Qh2+ {[%emt 0:00:11]} 22. Kf5 {[%emt 0:02:17]} *

[Event "2nd China Preliminary Asian Games 2022"]
[Site "HangZhou"]
[Date "2022.04.16"]
[Round "3.2"]
[White "Wei, Yi"]
[Black "Ding, Liren"]
[Result "*"]
[ECO "D41"]
[WhiteElo "2729"]
[BlackElo "2799"]
[Annotator "TA"]
[PlyCount "55"]
[EventDate "2022.04.13"]
[EventType "tourn"]
[EventCountry "CHN"]
[SourceTitle "playchess.com"]
[Source "ChessBase"]
[SourceQuality "1"]
[TimeControl "40/5400+30:1800+30"]

{[%evp 26,42,0,0,4,0,0,0,0,0,0,0,0,14,12,12,12,13,31]} 1. d4 {[%emt 0:00:20]} d5 {[%emt 0:00:21]} 2. c4 {[%emt 0:00:13]} e6 {[%emt 0:00:08]} 3. Nc3 {[%emt 0:00:41]} Nf6 {[%emt 0:00:10]} 4. cxd5 {[%emt 0:00:10]} Nxd5 {[%emt 0:00:10]} 5. e4 {[%emt 0:00:52]} Nxc3 {[%emt 0:00:09]} 6. bxc3 {[%emt 0:00:04]} c5 {[%emt 0:00:06]} 7. Nf3 {[%emt 0:00:05]} cxd4 {[%emt 0:00:18]} 8. cxd4 {[%emt 0:00:04]} Bb4+ {[%emt 0:00:10]} 9. Bd2 {[%emt 0:00:04]} Bxd2+ {[%emt 0:00:06]} 10. Qxd2 {[%emt 0:00:03]} O-O {[%emt 0:00:07]} 11. Bc4 {[%emt 0:00:05]} Nd7 {[%emt 0:00:30]} 12. O-O {[%emt 0:00:07]} b6 {[%emt 0:00:03]} 13. Rad1 {[%emt 0:00:05]} Bb7 {[%emt 0:00:07]} 14. Rfe1 {[%emt 0:00:05] The position is equal.} Rc8 {[%emt 0:00:05] D41: Queen's Gambit Declined: Semi-Tarrasch with 5 cxd5.} 15. Bb3 {[%emt 0:00:03]} Re8 {[%emt 0:00:05]} 16. h3 {[%emt 0:00:04]} h6 {[%emt 0:00:06]} 17. Re3 {[%emt 0:00:04]} Nf6 {[%emt 0:00:18]} 18. Qe2 {[%emt 1:36:21][%cal Od4d5]} Qc7 {[%emt 0:00:06]} 19. Ne5 {[%emt 0:10:00]} b5 {[%emt 0:00:25]} 20. Ng4 {[%emt 0:14:41]} Nxg4 {[%emt 1:37:00]} 21. hxg4 {[%emt 0:03:21]} Qf4 {[%emt 0:00:04] [#] An interesting draw.  Weighted Error Value: White=0.00 (flawless) /Black=0.00 (flawless)} {Predecessor:} 22. Re1 $146 a6 23. d5 exd5 24. exd5 Rxe3 25. Qxe3 Qxe3 26. Rxe3 Rd8 27. d6 Rxd6 28. Re8+ {½-½ (34) Gukesh,D (2640)-Praggnanandhaa,R (2618) Riga 2021} *

[Event "2nd China Preliminary Asian Games 2022"]
[Site "HangZhou"]
[Date "2022.04.16"]
[Round "3.2"]
[White "Xu, Xiangyu"]
[Black "Ma, Qun"]
[Result "1/2-1/2"]
[ECO "D41"]
[WhiteElo "2564"]
[BlackElo "2645"]
[Annotator "TA"]
[PlyCount "67"]
[EventDate "2022.04.13"]
[EventType "tourn"]
[EventCountry "CHN"]
[SourceTitle "playchess.com"]
[Source "ChessBase"]
[SourceQuality "1"]
[TimeControl "40/5400+30:1800+30"]

{[%evp 26,67,18,0,8,0,0,0,15,16,17,14,8,0,20,8,9,50,45,11,35,0,0,0,0,0,0,0,0,0,0,0,0,0,0,0,0,0,0,0,0,0,0,0]} 1. d4 {[%emt 0:00:20]} d5 {[%emt 0:00:21]} 2. c4 {[%emt 0:00:13]} e6 {[%emt 0:00:08]} 3. Nc3 {[%emt 0:00:41]} Nf6 {[%emt 0:00:10]} 4. cxd5 {[%emt 0:00:10]} Nxd5 {[%emt 0:00:10]} 5. e4 {[%emt 0:00:52]} Nxc3 {[%emt 0:00:09]} 6. bxc3 {[%emt 0:00:04]} c5 {[%emt 0:00:06]} 7. Nf3 {[%emt 0:00:05]} cxd4 {[%emt 0:00:18]} 8. cxd4 {[%emt 0:00:04]} Bb4+ {[%emt 0:00:10]} 9. Bd2 {[%emt 0:00:04]} Bxd2+ {[%emt 0:00:06]} 10. Qxd2 {[%emt 0:00:03]} O-O {[%emt 0:00:07]} 11. Bc4 {[%emt 0:00:05]} Nd7 {[%emt 0:00:30]} 12. O-O {[%emt 0:00:07]} b6 {[%emt 0:00:03]} 13. Rad1 {[%emt 0:00:05]} Bb7 {[%emt 0:00:07]} 14. Rfe1 {[%emt 0:00:05]} Rc8 {[%emt 0:00:05] D41: Queen's Gambit Declined: Semi-Tarrasch with 5 cxd5.} 15. Bb3 {[%emt 0:00:03]} Re8 {[%emt 0:00:05]} 16. h3 {[%emt 0:00:04]} h6 {[%emt 0:00:06]} 17. Re3 {[%emt 0:00:04]} Nf6 {[%emt 0:00:18]} 18. Qe2 {[%emt 0:01:11]} Qc7 {[%emt 0:00:06]} 19. Ne5 {[%emt 0:10:00]} b5 {[%emt 0:00:25]} 20. Ng4 {[%emt 0:14:41]} Nxg4 {[%emt 0:00:08]} 21. hxg4 {[%emt 0:03:21][%cal Og4g5]} Qf4 {[%emt 0:00:04] [#]} 22. Qxb5 $146 {[%emt 0:02:43]} ({Predecessor:} 22. Re1 a6 23. d5 exd5 24. exd5 Rxe3 25. Qxe3 Qxe3 26. Rxe3 Rd8 27. d6 Rxd6 28. Re8+ {½-½ (34) Gukesh,D (2640)-Praggnanandhaa,R (2618) Riga 2021}) 22... Bxe4 {[%emt 0:09:12]} 23. Qe5 {[%emt 0:00:09]} (23. d5 {feels hotter.} Red8 24. dxe6 Rxd1+ 25. Bxd1 fxe6 26. Qd7) 23... Qxe5 {[%emt 0:00:56] The position is equal.} 24. dxe5 {[%emt 0:00:05]} Bc2 {[%emt 0:03:39]} 25. Rd7 {[%emt 0:03:40]} a5 {[%emt 0:05:20]} 26. Ra7 {[%emt 0:07:58]} Bxb3 {[%emt 0:01:58]} 27. Rxb3 $11 {[%emt 0:00:11][%mdl 4096] Endgame KRR-KRR} Rc5 {[%emt 0:01:15]} 28. Ra3 {[%emt 0:00:39]} Rxe5 {[%emt 0:00:11]} 29. R3xa5 {[%emt 0:00:06]} Re2 {[%emt 0:02:46]} 30. a4 {[%emt 0:01:24]} Ra2 {[%emt 0:00:27]} 31. g3 {[%emt 0:01:09]} Rd8 {[%emt 0:00:38] [#] ...Rd1+ is the strong threat.} 32. Ra8 {[%emt 0:00:18]} Rxa8 {[%emt 0:00:01]} 33. Rxa8+ {[%emt 0:00:08]} Kh7 {[%emt 0:00:02]} 34. Kg2 {[%emt 0:03:35] Weighted Error Value: White=0.03 (flawless) /Black=0.02 (flawless)} 1/2-1/2

[Event "2nd China Preliminary Asian Games 2022"]
[Site "HangZhou"]
[Date "2022.04.16"]
[Round "3.3"]
[White "Zhang, Zhong"]
[Black "Bu, Xiangzhi"]
[Result "1/2-1/2"]
[ECO "C78"]
[WhiteElo "2640"]
[BlackElo "2700"]
[Annotator "TA"]
[PlyCount "62"]
[EventDate "2022.04.13"]
[EventType "tourn"]
[EventCountry "CHN"]
[SourceTitle "playchess.com"]
[Source "ChessBase"]
[SourceQuality "1"]
[TimeControl "40/5400+30:1800+30"]

{[%evp 12,62,32,47,53,32,25,1,6,0,6,6,0,0,8,4,4,7,8,12,10,12,12,10,10,12,12,11,10,8,8,8,8,9,8,8,8,6,8,8,8,4,8,8,8,8,9,8,8,9,8,0,0]} 1. e4 {[%emt 0:00:08]} e5 {[%emt 0:00:14]} 2. Nf3 {[%emt 0:00:10]} Nc6 {[%emt 0:00:06]} 3. Bb5 {[%emt 0:00:18]} a6 {[%emt 0:00:19]} 4. Ba4 {[%emt 0:00:17]} Nf6 {[%emt 0:00:06]} 5. O-O {[%emt 0:00:11]} Bc5 {[%emt 0:00:44]} 6. c3 {[%emt 0:03:26]} b5 {[%emt 0:00:06]} 7. Bc2 {[%emt 0:00:39]} d5 {[%emt 0:00:12] C78: Ruy Lopez: Archangelsk and Möller Defences.} 8. d4 {[%emt 0:01:16] Threatens to win with exd5.} dxe4 {[%emt 0:00:13][%cal Re5d4]} 9. Nbd2 {[%emt 0:00:23][%cal Bb1d2,Bd2e4,Be4c5][%mdl 32]} exf3 {[%emt 0:00:40] The position is equal.} 10. Qxf3 {[%emt 0:00:19]} Be7 {[%emt 0:00:14] ...Bd7 is the strong threat.} ({Resist} 10... e4 11. Nxe4 (11. Bxe4 Nxe4 12. Qxe4+ Be7 $16) 11... Bxd4 12. cxd4 $18) 11. Qxc6+ {[%emt 0:00:27]} Bd7 {[%emt 0:00:03]} 12. Qf3 {[%emt 0:00:10]} exd4 {[%emt 0:00:02]} 13. Ne4 {[%emt 0:00:34]} O-O {[%emt 0:00:53]} 14. Rd1 {[%emt 0:01:06] 14.Rd1 has become a bit dusty these days.} c5 {[%emt 0:07:06]} 15. Bg5 {[%emt 0:12:09][%cal Ob2b4]} Re8 {[%emt 0:00:33] And now ...Nxe4 would win.} 16. Bxf6 {[%emt 0:05:04][%mdl 64] [#] Deflection} Bxf6 {[%emt 0:00:05]} 17. Nxc5 {[%emt 0:00:24]} Bc6 {[%emt 0:00:14]} 18. Qxc6 {[%emt 0:09:27] Hoping for Nd7.} Rc8 {[%emt 0:01:50] [#]} 19. Qxa6 {[%emt 0:08:52]} Rxc5 {[%emt 0:00:05]} 20. g3 {[%emt 0:08:02]} Qc8 {[%emt 0:14:09]} 21. Qxc8 {[%emt 0:02:57]} Rexc8 {[%emt 0:00:07]} 22. Bb3 {[%emt 0:02:20]} dxc3 {[%emt 0:00:12]} 23. bxc3 {[%emt 0:00:13] [#]} Rxc3 $146 {[%emt 0:04:21]} ({Predecessor:} 23... Bxc3 24. Rac1 Kf8 25. Rd7 R8c7 26. Rcd1 Rxd7 27. Rxd7 f5 28. Rf7+ Ke8 29. Rb7 Kd8 {½-½ (35) Arjun,K (2406)-Lampert,J (2514) Douglas 2017}) 24. Rab1 {[%emt 0:00:22]} R8c7 {[%emt 0:10:07] Inhibits Rd7.} 25. Rd5 {[%emt 0:10:28]} b4 {[%emt 0:00:53]} 26. Rbd1 {[%emt 0:07:02][%cal Od5d8] White threatens Rd8+! and mate.} Rc1 {[%emt 0:02:45]} 27. Rxc1 {[%emt 0:00:20]} Rxc1+ {[%emt 0:00:01]} 28. Kg2 {[%emt 0:00:04]} Rc7 {[%emt 0:00:05] Against Rd7} 29. Rb5 {[%emt 0:04:57] Threatening mate with Rb8+.} Be7 $1 {[%emt 0:00:02]} 30. Rb8+ {[%emt 0:00:30]} Bf8 {[%emt 0:00:01]} 31. f4 {[%emt 0:02:09]} g6 {[%emt 0:00:13] Weighted Error Value: White=0.02 (flawless) /Black=0.01 (flawless)} 1/2-1/2

[Event "2nd China Preliminary Asian Games 2022"]
[Site "HangZhou"]
[Date "2022.04.17"]
[Round "4.1"]
[White "Bu, Xiangzhi"]
[Black "Ding, Liren"]
[Result "*"]
[WhiteElo "2700"]
[BlackElo "2799"]
[Annotator "TA"]
[PlyCount "32"]
[EventDate "2022.04.13"]
[EventType "tourn"]
[EventCountry "CHN"]
[SourceTitle "playchess.com"]
[Source "ChessBase"]
[SourceQuality "1"]
[TimeControl "40/5400+30:1800+30"]

{[%evp 9,9,20]} 1. e4 {[%emt 0:00:25]} c5 {[%emt 0:00:06]} 2. c3 {[%emt 0:00:12]} d5 {[%emt 0:07:10]} 3. exd5 {[%emt 0:01:10]} Qxd5 {[%emt 0:00:05]} 4. d4 {[%emt 0:00:05]} Nf6 {[%emt 0:00:33]} 5. Nf3 {[%emt 0:00:11] [#] An uneventful encounter.} {Predecessor:} e6 $146 6. Na3 {B22: Sicilian: 2 c3.} a6 7. Nc4 Nbd7 8. Be2 b5 9. Ne3 Qc6 10. O-O Bb7 11. a4 b4 12. Ne5 Nxe5 13. dxe5 Rd8 14. Qb3 Nd7 15. Bf3 Qc7 16. Bxb7 Qxb7 {1-0 (40) Mamedyarov,S (2770)-Vachier Lagrave,M (2760) chess24.com INT 2021} *